{"text_format":"2","workbook":"xlsx","n_sheets":3,"sheets":["WorldMapConfig","BigMapConfig","PlacesConfig"],"not_rendered":{"charts":0,"images":0,"macros":0,"external_links":0,"defined_names":3,"comments":0,"pivot_tables":0},"unopened":[],"bounds":{"document_bytes":16777216,"sheet_cells":100000,"run_cost":"one","rows_first":2000,"rows_last":500,"rows_between":2000,"halvings":0,"cell_chars":16384,"cell_head_chars":4096},"cells_cut":0,"cells_raw":0,"read":"whole","date_system":"1900"}

{"sheet":"WorldMapConfig","index":0,"n_rows":7,"n_cols":6,"rows_kept":7,"cut":false,"hidden":false,"merged":[]}
["ID",null,"worldName","mpDesc","bigMapPrefabName","bigMapId"]
["int",null,"int","int[]","string","int[]"]
[]
["ID","世界名称","世界名称\n(语言表)","世界介绍\n\n多个","带地图预制件名称","包含的大地图"]
[1,"人界",1918,"4;5;6","RenJieBigMapPanel","1;2;3"]
[2,"仙界",1919,"7;8;9"]
[3,"魔界",1920,"10;11;12"]

{"sheet":"BigMapConfig","index":1,"n_rows":7,"n_cols":10,"rows_kept":7,"cut":false,"hidden":false,"merged":[]}
["ID",null,"mapPrefabName","mapName","mapDesc","places","ulockFunction","extraUnlockConTyp","extraUnlockConVal"]
["int",null,"string","int","int","int[]","int[]","int","int"]
[]
["ID","区域名","大地图预制件\n(不配就做成固定)","大地图名称(语言表)","大地图介绍","包含的地点","解锁表ulockFunction","0. 无\n1. 事件解锁","根据extraUnlockConTyp填","备注"]
[1,"蓬莱岛","PengLaiDaoPlacesPanel",1921,1,"1;2;3;4",0,0]
[2,"东海","DongHaiPlacesPanel",1922,2,"5;6;7",0,0]
[3,"无量界","WuLiangJiePlacesPanel",1923,3,"8;9;10;11;12",0,0]

{"sheet":"PlacesConfig","index":2,"n_rows":16,"n_cols":46,"rows_kept":16,"cut":false,"hidden":false,"merged":[]}
["ID","placeName",null,"placePrefabName","bigMapID","to3DPrefab","placeDesc",null,"TotalScore","MainTaskID",null,"ZhixianID","ZhixianActivatedPercentage",null,"DivineSenseGeneralProbability","SpecialTaskID",null,"GuajiEvent"]
["int","int",null,"int","int","string","int",null,"int","int[]",null,"int[]","int[]",null,"int","int[]",null,"int[]"]
[]
["ID","地点名称(语言表ID)",null,"区域预制件\n(不配就做成固定)","属于哪个大地图","3D世界","3D世界",null,"总进度值","主线事件ID",null,"支线事件ID\n","触发支线的进度百分比",null,"刷该地图特定无限次事件的概率\n40=40%","该地图特定的无限次事件",null,"挂机包含的特殊事件列表",null,"主线ID1","主线ID2","主线ID3","主线ID4","主线ID5","主线ID6","主线ID7","主线ID8","主线ID9","主线ID10",null,"支线ID1","支线ID2","支线ID3","支线ID4","支线ID5","支线ID6","支线ID7","支线ID8","支线ID9","支线ID10",null,"特定通用1","特定通用2","特定通用3","特定通用4","特定通用5"]
[1,1924,"北海",null,1,"a",null,null,{"$f":"COUNT(T5:AT5)*10","v":60},{"$f":"_xlfn.TEXTJOIN(\";\",1,T5:AC5)","v":"10001;10002;10003;10004"},null,{"$f":"_xlfn.TEXTJOIN(\";\",1,AE5:AN5)","v":"3"},25,null,40,{"$f":"_xlfn.TEXTJOIN(\";\",1,AP5:AT5)","v":"1001"},null,null,null,10001,10002,10003,10004,{"$nulls":7},3,{"$nulls":10},1001]
[2,1925,"尧之都",null,1,"b",null,null,{"$f":"COUNT(T6:AT6)*10","v":0},{"$f":"_xlfn.TEXTJOIN(\";\",1,T6:AC6)","v":""}]
[3,1926,"藐姑射山",null,1,"c",null,null,0,""]
[4,1927,"月隐谷",null,1,"h",null,null,0,""]
[5,1928,"龙吟渊",null,2,"j",null,null,0,""]
[6,1929,"珊瑚灵礁",null,2,"j",null,null,0,""]
[7,1930,"玄波岛",null,2,"j",null,null,0,""]
[8,1931,"天心湖",null,3,"j",null,null,0,""]
[9,1932,"翠微山",null,3,"j",null,null,0,""]
[10,1933,"星落平原",null,3,"j",null,null,0,""]
[11,1934,"无垢城",null,3,"j",null,null,0,""]
[12,1935,"寂光林",null,3,"j",null,null,0,""]